bitfinex-derivatives/quotes_BNBF0:USTF0_20250331
["timestamp","ask_amount","ask_price","bid_price","bid_amount"]
[1743402365373,2.27761832,601.29,600.11,0.33327223]
[1743402365576,2.27761832,601.29,600.12,0.28668223]
[1743402365875,2.27761832,601.29,600.14,0.33325557]
[1743402366076,1.167,601.29,600.15,0.28668223]
[1743402366284,1.167,601.29,600.17,0.33323891]
[1743402366579,1.167,601.29,600.18,0.28668223]
[1743402366781,1.167,601.29,600.2,0.33322225]
[1743402366985,1.167,601.29,600.21,0.28668223]
[1743402367279,1.167,601.29,600.23,0.3332056]
[1743402367480,1.167,601.29,600.24,0.28668223]
[1743402367782,1.167,601.29,600.25,0.61988863]
[1743402368082,1.167,601.29,600.26,0.61988308]
[1743402368275,1.167,601.29,600.27,0.61987753]
[1743402368474,1.167,601.29,600.28,0.61987198]
[1743402368680,1.167,601.29,600.29,0.61986643]
[1743402368879,1.167,601.29,600.29,0.3331723]
[1743402369680,0.858,601.28,600.29,0.3331723]
[1743402370783,1.67631796,601.28,600.29,0.3331723]
[1743402371279,3.05026698,601.28,600.29,0.3331723]
[1743402371479,3.04906108,601.28,600.29,0.3331723]
[1743402371681,0.28983214,601.27,600.29,0.3331723]
[1743402371885,2.48089322,601.27,600.29,0.3331723]
[1743402372086,3.59151154,601.27,600.29,0.3331723]
[1743402373190,3.3016794,601.27,600.29,0.3331723]
[1743402373588,1.10741641,601.26,600.29,0.3331723]
[1743402373790,0.28985387,601.26,600.29,0.3331723]
[1743402374790,1.66259699,601.26,600.29,0.3331723]
[1743402374991,0.28985387,601.26,600.3,0.2867506]
[1743402375190,1.10717104,601.26,600.31,0.3331612]
[1743402375589,0.30588625,601.25,600.31,0.3331612]
[1743402375788,1.12320342,601.25,600.31,0.3331612]
[1743402375984,4.38508417,601.25,600.31,0.3331612]
[1743402376184,0.81731717,601.24,600.31,0.3331612]
[1743402376386,0.81731717,601.24,600.32,0.28674064]
[1743402376592,3.17594855,601.24,600.31,0.3331612]
[1743402376790,2.19006029,601.23,600.31,0.3331612]
[1743402376987,0.28970908,601.24,600.31,0.3331612]
[1743402377895,0.28970908,601.24,600.32,0.28673659]
[1743402378097,0.28970908,601.24,600.32,0.33315565]
[1743402378496,0.28970908,601.24,600.33,0.28673427]
[1743402378795,0.28970908,601.24,600.34,0.33314455]
[1743402378996,0.28970908,601.24,600.35,0.28673427]
[1743402379193,0.28970908,601.24,600.36,0.33313345]
[1743402379396,3.29811648,601.27,600.36,0.33313345]
[1743402379599,2.18749816,601.27,600.36,0.33313345]
[1743402380597,0.28981162,601.26,600.36,0.33313345]
[1743402382101,1.10610265,601.26,600.36,0.33313345]
[1743402382399,1.185,601.25,600.36,0.33313345]
[1743402382698,0.964,601.24,600.37,0.28672292]
[1743402383600,2.33486681,601.24,600.37,0.28672292]
[1743402383793,2.33486681,601.24,600.38,0.28672356]
[1743402383994,2.33486681,601.24,600.37,0.28672356]
[1743402384301,3.44548513,601.24,600.37,0.28672356]
[1743402386498,0.30585868,601.23,600.37,0.28672356]
[1743402389301,1.6756467,601.23,600.37,0.28672356]
[1743402389502,0.59555088,601.22,600.37,0.28672356]
[1743402389705,0.30585868,601.21,600.37,0.28672356]
[1743402390505,1.244,601.2,600.37,0.28672356]
[1743402390704,1.244,601.2,600.36,0.33313345]
[1743402390901,1.244,601.2,600.38,0.28673448]
[1743402391101,1.244,601.2,600.37,0.28673448]
[1743402391303,1.244,601.2,600.38,0.28673448]
[1743402391501,1.244,601.2,600.37,0.28673448]
[1743402392702,2.423,601.2,600.38,0.2867229]
[1743402392897,2.423,601.2,600.39,0.2867229]
[1743402393101,2.423,601.2,600.37,0.2867229]
[1743402393304,2.423,601.2,600.38,0.2867229]
[1743402393503,2.423,601.2,600.37,0.2867229]
[1743402393807,2.423,601.2,600.38,0.2867229]
[1743402394008,2.423,601.2,600.37,0.2867229]
[1743402396404,2.423,601.2,600.38,0.28672346]
[1743402396602,2.423,601.2,600.37,0.28672346]
[1743402396810,2.423,601.2,600.38,0.28672346]
[1743402397011,3.321,601.2,600.37,0.28672346]
[1743402398112,1.11061832,601.19,600.37,0.28672346]
[1743402399602,2.42461832,601.19,600.36,0.33313345]
[1743402399811,2.42461832,601.19,600.37,0.2867343]
[1743402400610,2.42461832,601.19,600.36,0.33313345]
[1743402407115,3.80026683,601.19,600.36,0.33313345]
[1743402407315,2.42461832,601.19,600.36,0.33313345]
[1743402408119,3.80064372,601.19,600.36,0.33313345]
[1743402409320,1.37666357,601.18,600.36,0.33313345]
[1743402409512,3.80128189,601.19,600.36,0.33313345]
[1743402409714,0.936,601.17,600.36,0.33313345]
[1743402411413,1.75690744,601.17,600.36,0.33313345]
[1743402411920,3.13357101,601.17,600.36,0.33313345]
[1743402414218,1.37666357,601.16,600.37,0.28673816]
[1743402414420,3.51387967,601.16,600.37,0.28673816]
[1743402414922,1.11061832,601.15,600.37,0.28673816]
[1743402415122,3.24783442,601.15,600.37,0.28673816]
[1743402415322,8.61421761,601.15,600.37,0.28673816]
[1743402415619,5.72148456,601.14,600.37,0.28673816]
[1743402415818,2.1372161,601.13,600.36,0.33313345]
[1743402416024,5.72148456,601.13,600.37,0.28674072]
[1743402416324,5.03354438,601.12,600.37,0.28674072]
[1743402416623,3.58426846,601.11,600.37,0.28674072]
[1743402416828,0.82338897,601.1,600.37,0.28674072]
[1743402417024,0.82338897,601.1,600.36,0.33313345]
[1743402417331,1.319,601.09,600.37,0.28673791]
[1743402417530,2.14238897,601.09,600.37,0.28673791]
[1743402417726,3.51905254,601.09,600.36,0.33313345]
[1743402417930,3.51905254,601.09,600.37,0.28673812]
[1743402418131,2.48728189,601.08,600.36,0.33313345]
[1743402418522,1.11061832,601.08,600.36,0.33313345]
[1743402419530,1.11061832,601.07,600.36,0.33313345]
[1743402419926,3.51844893,601.07,600.36,0.33313345]
[1743402420127,5.73179611,601.07,600.36,0.33313345]
[1743402420332,1.93400729,601.06,600.36,0.33313345]
[1743402420532,5.52401804,601.06,600.36,0.33313345]
[1743402420729,0.82338897,601.05,600.36,0.33313345]
[1743402420934,4.41339972,601.05,600.36,0.33313345]
[1743402421133,0.82338897,601.04,600.36,0.33313345]
[1743402421432,4.04073305,601.04,600.36,0.33313345]
[1743402421629,2.20005254,601.03,600.36,0.33313345]
[1743402421827,2.20060324,601.03,600.36,0.33313345]
[1743402422025,5.7314281,601.03,600.36,0.33313345]
[1743402422231,5.7314281,601.02,600.36,0.33313345]
[1743402422431,5.7314281,601.01,600.36,0.33313345]
[1743402422631,4.41332258,601.0,600.36,0.33313345]
[1743402422829,4.41229583,600.99,600.36,0.33313345]
[1743402423033,0.82393967,600.98,600.36,0.33313345]
[1743402423435,2.89273305,600.98,600.36,0.33313345]
[1743402424439,5.73383476,601.01,600.36,0.33313345]
[1743402424738,2.1404294,601.0,600.36,0.33313345]
[1743402424932,3.71607942,601.0,600.36,0.31914734]
[1743402425135,3.5931342,600.99,600.36,0.31914734]
[1743402425331,5.7335636,600.99,600.36,0.31914734]
[1743402425535,2.1404294,600.98,600.36,0.31914734]
[1743402425736,0.82334637,600.98,600.36,0.31914734]
[1743402425935,3.71607942,600.98,600.36,0.31914734]
[1743402426136,3.5931342,600.97,600.36,0.31914734]
[1743402426330,5.7335636,600.97,600.36,0.31914734]
[1743402426536,3.25104772,600.96,600.36,0.31914734]
[1743402426736,6.84418192,600.96,599.5,2.52044129]
[1743402426934,5.7335636,600.95,599.51,0.28753068]
[1743402427138,5.7335636,600.94,599.53,0.33359464]
[1743402427339,2.1404294,600.93,599.54,0.28753068]
[1743402427536,0.82334637,600.93,599.55,0.28753068]
[1743402427734,0.82334637,600.93,599.53,0.33359464]
[1743402427735,0.82334637,600.93,599.56,0.28753068]
[1743402427933,3.71607942,600.93,599.58,0.33356683]
[1743402428136,3.58868947,600.92,599.59,0.28753068]
[1743402428439,0.82334637,600.91,599.61,0.33355014]
[1743402428636,3.71607942,600.91,599.62,0.28753068]
[1743402428835,1.38026518,600.9,599.63,0.28753068]
[1743402429038,2.20361155,600.9,599.64,0.28753068]
[1743402429238,2.20361155,600.9,599.66,0.33352232]
[1743402429440,0.28989491,600.95,599.67,0.28753068]
[1743402429640,0.28989491,600.95,599.69,0.33350564]
[1743402429940,0.28989491,600.95,599.7,0.28753068]
[1743402430135,0.28989491,600.95,599.72,0.33348896]
[1743402430339,0.28989491,600.95,599.73,0.28753068]
[1743402430542,5.72381865,601.01,599.73,0.28753068]
[1743402430543,5.72381865,601.0,599.75,0.33347228]
[1743402430739,5.72381865,600.99,599.76,0.28753068]
[1743402430941,5.72381865,600.98,599.78,0.3334556]
[1743402431141,5.72381865,600.97,599.79,0.28753068]
[1743402431341,2.13663733,600.96,599.81,0.33343892]
[1743402431542,0.82178359,600.96,599.82,0.28753068]
[1743402431740,3.71451664,600.96,599.84,0.33342224]
[1743402431936,3.58718132,600.95,599.85,0.28753068]
[1743402432140,0.82178359,600.94,599.87,0.33340557]
[1743402432343,1.93240191,600.94,599.88,0.28753068]
[1743402432642,5.51812619,600.94,599.89,0.33339445]
[1743402432843,0.82178359,600.93,599.9,0.28753068]
[1743402433139,2.20147938,600.93,599.91,0.33338334]
[1743402433343,5.09421243,600.93,599.92,0.28753068]
[1743402433642,2.20147938,600.92,599.93,0.33337222]
[1743402433843,2.20147938,600.92,599.94,0.28753068]
[1743402434038,0.28985507,600.97,599.95,0.33336111]
[1743402434341,0.28985507,600.97,599.96,0.28753068]
[1743402434543,0.28985507,600.97,599.97,0.33335]
[1743402435541,0.28985507,600.97,599.98,0.28752527]
[1743402435743,0.28985507,600.97,599.99,0.33333888]
[1743402435940,0.28985507,600.97,600.0,0.28752527]
[1743402436145,1.185,600.96,600.01,0.33332777]
[1743402436344,1.185,600.96,600.02,0.28752505]
[1743402436544,1.185,600.96,600.03,0.33331666]
[1743402436739,2.0062142,600.96,600.04,0.28752505]
[1743402436945,5.59172909,600.96,600.05,0.33330555]
[1743402437147,0.8212142,600.95,600.06,0.28752505]
[1743402437347,2.20147938,600.95,600.07,0.33329444]
[1743402437647,3.3120977,600.95,600.08,0.28752505]
[1743402437848,3.3120977,600.95,600.07,0.33329444]
[1743402440649,3.60194674,600.95,600.07,0.33329444]
[1743402441154,4.97794674,600.95,600.07,0.33329444]
[1743402441348,2.20147938,600.94,600.07,0.33329444]
[1743402441849,3.3120977,600.94,600.07,0.33329444]
[1743402442249,2.4908835,600.94,600.07,0.33329444]
[1743402442549,3.71199352,600.94,600.07,0.33329444]
[1743402442748,1.38026518,600.93,600.07,0.33329444]
[1743402442944,2.19638235,600.95,600.07,0.33329444]
[1743402443146,4.68726585,600.95,600.07,0.33329444]
[1743402443350,2.2006306,600.94,600.07,0.33329444]
[1743402443949,3.31124892,600.94,600.07,0.33329444]
[1743402446452,4.48624892,600.94,600.07,0.33329444]
[1743402446752,2.2006306,600.93,600.07,0.33329444]
[1743402447149,3.31124892,600.93,600.07,0.33329444]
[1743402447950,1.93098374,600.93,600.07,0.33329444]
[1743402448152,5.51301322,600.93,600.07,0.33329444]
[1743402448348,0.82036542,600.92,600.07,0.33329444]
[1743402448547,4.4023949,600.92,600.07,0.33329444]
[1743402448750,0.82036542,600.91,600.07,0.33329444]
[1743402448950,5.71395121,600.92,600.07,0.33329444]
[1743402449151,1.378,600.9,600.07,0.33329444]
[1743402449347,3.5786306,600.9,600.07,0.33329444]
[1743402449955,1.11061832,600.89,600.07,0.33329444]
[1743402450157,3.31124892,600.89,600.07,0.33329444]
[1743402451953,1.37528096,600.88,600.07,0.33329444]
[1743402452154,3.3062647,600.89,600.07,0.33329444]
[1743402453758,1.93098374,600.89,600.07,0.33329444]
[1743402453954,3.57355909,600.9,600.07,0.33329444]
[1743402454360,2.19555909,600.89,600.07,0.33329444]
[1743402454556,1.37519367,600.89,600.07,0.33329444]
[1743402454760,1.11061832,600.89,600.07,0.33329444]
[1743402454961,1.378,600.9,600.07,0.33329444]
[1743402455662,1.066,600.89,600.07,0.33329444]
[1743402456265,2.44119367,600.89,600.07,0.33329444]
[1743402456659,3.26056894,600.89,600.07,0.33329444]
[1743402456963,4.37118726,600.89,600.07,0.33329444]
[1743402457158,3.55181199,600.89,600.07,0.33329444]
[1743402459467,2.17661832,600.89,600.07,0.33329444]
[1743402459667,1.066,600.89,600.07,0.33329444]
[1743402465768,0.923,600.88,600.07,0.33329444]
[1743402468177,1.367,600.87,600.07,0.33329444]
[1743402469476,1.367,600.87,600.08,0.28750356]
[1743402469676,1.367,600.87,600.09,0.33328334]
[1743402469876,1.185,600.86,600.09,0.33328334]
[1743402470377,1.185,600.86,600.1,0.28750324]
[1743402470576,1.185,600.86,600.1,0.62078102]
[1743402470773,1.185,600.86,600.11,0.28750324]
[1743402473078,0.906,600.85,600.11,0.28750324]
[1743402477187,2.28490377,600.85,600.1,0.33327778]
[1743402477488,9.52527493,600.85,600.1,0.33327778]
[1743402477685,4.40697154,600.84,600.1,0.33327778]
[1743402477980,3.71920894,600.83,600.1,0.33327778]
[1743402478184,1.37890377,600.82,600.1,0.33327778]
[1743402478383,0.82148962,600.82,600.1,0.33327778]
[1743402478885,0.82148962,600.84,600.1,0.33327778]
[1743402479081,2.13666358,600.84,600.1,0.33327778]
[1743402479287,5.72301268,600.84,600.1,0.33327778]
[1743402479484,2.13662846,600.83,600.1,0.33327778]
[1743402479681,3.71920894,600.83,600.1,0.33327778]
[1743402479987,3.5863491,600.82,600.1,0.33327778]
[1743402480185,0.82194448,600.81,600.1,0.33327778]
[1743402480685,3.7196638,600.81,600.1,0.33327778]
[1743402480884,1.37936504,600.8,600.1,0.33327778]
[1743402481080,4.40853488,600.8,600.1,0.33327778]
[1743402481283,3.5865904,600.79,600.1,0.33327778]
[1743402481580,0.82193534,600.78,600.1,0.33327778]
[1743402481787,5.72377953,600.84,600.1,0.33327778]
[1743402481988,5.03490845,600.83,600.1,0.33327778]
[1743402482287,3.5865904,600.82,600.1,0.33327778]
[1743402482487,5.72377953,600.82,600.1,0.33327778]
[1743402482786,3.25127638,600.81,600.1,0.33327778]
[1743402482986,8.62149885,600.81,600.1,0.33327778]
[1743402483188,8.62149885,600.8,600.1,0.33327778]
[1743402483384,4.40911627,600.79,600.1,0.33327778]
[1743402483587,0.82193534,600.78,600.1,0.33327778]
[1743402483783,4.40911627,600.78,600.1,0.33327778]
[1743402483990,0.82193534,600.77,600.1,0.33327778]
[1743402484182,2.20162031,600.77,600.1,0.33327778]
[1743402484589,1.099,600.76,600.1,0.33327778]
[1743402484992,2.21308725,600.76,600.1,0.33327778]
[1743402485287,4.41481773,600.76,600.1,0.33327778]
[1743402485589,2.20173048,600.75,600.1,0.33327778]
[1743402485991,1.93613276,600.75,600.1,0.33327778]
[1743402486186,1.11408725,600.75,600.1,0.33327778]
[1743402486591,1.099,600.76,600.1,0.33327778]
[1743402488392,2.21308725,600.76,600.1,0.33327778]
[1743402489094,1.099,600.76,600.1,0.33327778]
[1743402489292,1.185,600.75,600.1,0.33327778]
[1743402489993,1.237,600.74,600.1,0.33327778]
[1743402494096,1.237,600.74,600.11,0.28750329]
[1743402494302,1.237,600.74,600.12,0.33326667]
[1743402494694,1.237,600.74,600.13,0.28750329]
[1743402495099,1.237,600.74,600.14,0.33325557]
[1743402502305,1.248,600.73,600.14,0.33325557]
[1743402507711,1.278,600.72,600.14,0.33325557]
[1743402509705,1.191,600.71,600.14,0.33325557]
[1743402510111,1.174,600.7,600.14,0.33325557]
[1743402510515,2.28988208,600.7,600.14,0.33325557]
[1743402510710,3.66989492,600.7,600.14,0.33325557]
[1743402510914,2.28988208,600.7,600.14,0.33325557]
[1743402511109,1.174,600.7,600.14,0.33325557]
[1743402511513,2.55388806,600.7,600.14,0.33325557]
[1743402511914,3.66977014,600.7,600.14,0.33325557]
[1743402514513,2.28988208,600.7,600.14,0.33325557]
[1743402514915,1.174,600.7,600.14,0.33325557]
[1743402518520,2.105,600.7,600.14,0.33325557]
[1743402519321,3.22088208,600.7,600.14,0.33325557]
[1743402523621,1.37870813,600.69,600.14,0.33325557]
[1743402523827,1.37866296,600.69,600.14,0.33325557]
[1743402524024,3.48366296,600.7,600.14,0.33325557]
[1743402524225,0.82139062,600.69,600.14,0.33325557]
[1743402524526,3.72031344,600.69,600.14,0.33325557]
[1743402524725,1.37866296,600.68,600.14,0.33325557]
[1743402525026,2.20005358,600.68,600.14,0.33325557]
[1743402526121,1.391,600.67,600.14,0.33325557]
[1743402526522,2.50688208,600.67,600.14,0.33325557]
[1743402526722,3.88554504,600.67,600.14,0.33325557]
[1743402526922,1.37866296,600.66,600.14,0.33325557]
[1743402527117,2.50688208,600.67,600.14,0.33325557]
[1743402527325,1.391,600.67,600.14,0.33325557]
[1743402527922,2.50688208,600.67,600.14,0.33325557]
[1743402528129,3.88554504,600.67,600.14,0.33325557]
[1743402528326,1.37866296,600.66,600.14,0.33325557]
[1743402528524,2.50688208,600.67,600.14,0.33325557]
[1743402528724,1.391,600.67,600.14,0.33325557]
[1743402528924,2.50688208,600.67,600.14,0.33325557]
[1743402529122,3.590771,600.67,600.14,0.33325557]
[1743402529325,1.37866296,600.66,600.14,0.33325557]
[1743402529629,1.11588208,600.66,600.14,0.33325557]
[1743402530229,2.50688208,600.67,600.14,0.33325557]
[1743402530625,3.88499901,600.67,600.14,0.33325557]
[1743402530828,1.37811693,600.66,600.14,0.33325557]
[1743402531030,1.391,600.67,600.14,0.33325557]
[1743402532131,3.59024364,600.67,600.14,0.33325557]
[1743402532533,2.44688208,600.66,600.14,0.33325557]
[1743402532733,3.82499901,600.66,600.14,0.33325557]
[1743402532936,0.954,600.65,600.14,0.33325557]
[1743402533133,2.33211693,600.65,600.14,0.33325557]
[1743402533332,3.44799901,600.65,600.14,0.33325557]
[1743402533731,1.358,600.64,600.14,0.33325557]
[1743402533932,2.73611693,600.64,600.14,0.33325557]
[1743402534130,3.85199901,600.64,600.14,0.33325557]
[1743402535635,2.47388208,600.64,600.14,0.33325557]
[1743402536430,1.358,600.64,600.14,0.33325557]
[1743402542537,1.002,600.63,600.14,0.33325557]
[1743402546336,1.051,600.62,600.14,0.33325557]
[1743402549642,1.185,600.61,600.14,0.33325557]
[1743402557950,1.043,600.6,600.14,0.33325557]
[1743402563951,1.196,600.59,600.14,0.33325557]
[1743402574760,1.185,600.58,600.14,0.33325557]
[1743402594681,2.48,600.58,600.14,0.33325557]
[1743402596578,3.92,600.58,600.14,0.33325557]
[1743402611994,5.011,600.58,600.14,0.33325557]
[1743402626996,5.011,600.58,600.15,0.28748049]
[1743402627202,5.011,600.58,600.16,0.33324446]
[1743402627397,1.091,600.58,600.17,0.28748049]
[1743402627701,1.091,600.58,600.17,0.6207194]
[1743402627896,1.091,600.58,600.17,0.33323891]
[1743402633001,4.204,600.61,600.17,0.33323891]
[1743402637114,5.551,600.61,600.17,0.33323891]
[1743402642121,2.794,600.61,600.17,0.33323891]
[1743402643323,1.447,600.61,600.17,0.33323891]
[1743402644517,4.40864072,600.83,600.17,0.33323891]
[1743402644718,3.58670426,600.82,600.17,0.33323891]
[1743402644918,0.82193646,600.81,600.17,0.33323891]
[1743402645119,2.20720262,600.85,600.17,0.33323891]
[1743402645120,3.58670426,600.84,600.17,0.33323891]
[1743402645419,1.11516203,600.83,600.17,0.33323891]
[1743402645817,6.83890379,600.83,600.17,0.33323891]
[1743402646021,8.62316305,600.82,600.17,0.33323891]
[1743402646219,5.72348388,600.81,600.17,0.33323891]
[1743402646421,3.72131183,600.8,600.17,0.33323891]
[1743402646621,3.58656847,600.79,600.17,0.33323891]
[1743402646826,0.82189054,600.78,600.17,0.33323891]
[1743402647124,1.93705257,600.78,600.17,0.33323891]
[1743402647325,3.31650198,600.78,600.17,0.33323891]
[1743402647518,5.10076124,600.78,600.17,0.33323891]
[1743402647826,2.20133995,600.77,600.17,0.33323891]
[1743402648626,0.28987801,600.86,600.17,0.33323891]
[1743402649627,5.72328762,600.97,600.17,0.33323891]
[1743402649824,3.51629041,600.96,600.17,0.33323891]
[1743402650023,1.3793409,600.95,600.17,0.33323891]
[1743402650420,2.75867839,600.95,600.17,0.33323891]
[1743402650727,1.11516203,600.94,600.17,0.33323891]
[1743402650925,1.40512095,600.94,600.17,0.33323891]
[1743402651125,1.11516203,600.93,600.17,0.33323891]
[1743402651521,2.49449952,600.93,600.17,0.33323891]
[1743402651726,1.11516203,600.92,600.17,0.33323891]
[1743402652221,3.25190266,600.92,600.17,0.33323891]
[1743402652419,1.11516203,600.91,600.17,0.33323891]
[1743402652622,4.63124015,600.91,600.17,0.33323891]
[1743402652925,3.58627747,600.9,600.17,0.33323891]
[1743402653127,4.63124015,600.9,600.17,0.33323891]
[1743402653327,3.58627747,600.89,600.17,0.33323891]
[1743402653622,1.11516203,600.88,600.17,0.33323891]
[1743402653826,3.54187487,600.88,600.17,0.33323891]
[1743402654127,7.12733141,600.88,600.17,0.33323891]
[1743402654321,6.8373592,600.87,600.17,0.33323891]
[1743402654521,5.72219717,600.86,600.17,0.33323891]
[1743402654725,8.62161846,600.85,600.17,0.33323891]
[1743402654922,5.72219717,600.84,599.92,0.28997221]
[1743402655229,3.51558696,600.83,599.08,2.52044129]
[1743402655429,2.20084506,600.82,599.1,0.33383408]
[1743402655729,2.19984989,600.81,599.11,0.28768778]
[1743402655923,1.37813621,600.8,599.11,0.28768778]
[1743402656121,1.37813621,600.79,599.11,0.28768778]
[1743402656327,2.49329824,600.79,599.11,0.28768778]
[1743402656628,1.11516203,600.78,599.12,0.28766865]
[1743402656827,6.83477177,600.78,599.13,0.28766865]
[1743402657027,5.71960974,600.77,599.14,0.28766865]
[1743402657231,5.71960974,600.77,599.1,0.33383408]
[1743402657232,5.71960974,600.76,599.15,0.28766865]
[1743402657428,5.71960974,600.76,599.16,0.28766865]
[1743402657429,2.13645558,600.75,599.16,0.28766865]
[1743402657624,1.93687571,600.75,599.17,0.28766865]
[1743402657930,5.09927118,600.75,599.18,0.28766865]
[1743402658125,2.19984989,600.74,599.19,0.28766865]
[1743402658324,2.19984989,600.74,599.2,0.28766865]
[1743402658527,2.19984989,600.74,599.21,0.28766865]
[1743402658828,1.37813621,600.74,599.22,0.28766865]
[1743402659028,1.11516203,600.97,599.23,0.28766865]
[1743402659230,0.30604532,600.96,599.24,0.28766865]
[1743402659421,0.30604532,600.96,599.25,0.28766865]
[1743402659631,1.11516203,600.95,599.26,0.28766865]
[1743402659830,0.30604532,600.94,599.27,0.28766865]
[1743402660029,1.4051137,600.95,599.23,2.52044129]
[1743402660330,0.30603458,600.94,599.24,0.28756628]
[1743402660531,0.30603458,600.94,599.25,0.28756628]
[1743402660830,0.30603458,600.94,599.26,0.28756628]
[1743402661032,0.30603458,600.94,599.27,0.28756628]
[1743402661231,0.28995167,600.95,599.28,0.28756628]
[1743402661433,1.11516203,601.01,599.29,0.28756628]
[1743402661731,0.28993114,600.94,599.3,0.28756628]
[1743402661932,0.28993114,600.94,599.31,0.28756628]
[1743402662131,0.28993114,600.94,599.32,0.28756628]
[1743402662326,0.28993114,600.94,599.33,0.28756628]
[1743402662530,0.28993114,600.94,599.34,0.28756628]
[1743402662831,0.30603393,600.93,599.35,0.28756628]
[1743402663032,0.30603393,600.93,599.36,0.28756628]
[1743402663238,0.28993114,600.94,599.24,2.52044129]
[1743402663431,0.30603525,600.93,599.25,0.28756696]
[1743402663734,0.30603525,600.93,599.26,0.28756696]
[1743402664032,0.30603525,600.93,599.27,0.28756696]
[1743402664334,0.30603525,600.93,599.3,2.52044129]
[1743402664635,0.28995288,600.92,599.31,0.28756696]
[1743402664829,0.28995288,600.92,599.32,0.28756696]
[1743402665033,0.28995288,600.92,599.33,0.28756696]
[1743402665234,0.28995288,600.92,599.34,0.28756696]
[1743402665433,2.13536948,600.93,599.35,0.28756696]
[1743402665627,0.82129595,600.93,599.36,0.28756696]
[1743402665831,0.82129595,600.93,599.37,0.28756696]
[1743402666032,1.443,600.92,599.38,0.28756696]
[1743402666229,1.443,600.92,599.39,0.28756696]
[1743402666433,7.16260049,600.92,599.4,0.28756696]
[1743402666735,8.61900918,600.91,599.41,0.62122839]
[1743402666938,4.40538677,600.9,599.43,0.3336503]
[1743402667133,0.82138357,600.89,599.44,0.28756696]
[1743402667432,0.82138357,600.89,599.46,0.3336336]
[1743402667637,4.40538677,600.89,599.47,0.28756696]
[1743402667836,0.82138357,600.88,599.48,0.28756696]
[1743402668039,4.40559208,600.88,599.49,0.28756696]
[1743402668337,0.82138357,600.87,599.5,0.6211783]
[1743402668537,5.09926763,600.88,599.52,0.33360021]
[1743402668736,2.19984634,600.87,599.52,0.33360021]
[1743402668936,2.19984634,600.87,599.53,0.28756696]
[1743402669335,0.82138357,600.9,599.55,0.33358352]
[1743402669531,4.40559397,600.9,599.56,0.28756696]
[1743402669734,7.30501526,600.89,599.58,0.33356683]
[1743402669932,2.19984634,600.88,599.59,0.28756696]
[1743402670132,2.19984634,600.88,599.61,0.33355014]
[1743402670336,2.19996045,600.88,599.62,0.28756696]
[1743402670537,2.19996045,600.88,599.64,0.33353345]
[1743402670738,1.471,600.87,599.65,0.28756696]
[1743402670941,1.471,600.87,599.67,0.33351676]
[1743402671242,1.471,600.87,599.68,0.28756696]
[1743402671440,1.471,600.87,599.7,0.33350008]
[1743402671639,1.471,600.87,599.71,0.28756696]
[1743402671840,3.67096045,600.87,599.73,0.3334834]
[1743402672041,3.67096045,600.87,599.74,0.28756696]
[1743402672340,2.19982117,600.86,599.76,0.33346672]
[1743402672539,1.11516203,600.86,599.77,0.28754143]
[1743402672734,3.3149832,600.86,599.79,0.33345004]
[1743402672937,3.3149832,600.86,599.8,0.28754143]
[1743402673133,3.3149832,600.86,599.82,0.33343336]
[1743402673334,3.3149832,600.86,599.83,0.28754143]
[1743402673534,3.3149832,600.86,599.85,0.33341668]
[1743402673735,3.3149832,600.86,599.86,0.28754143]
[1743402673938,3.3149832,600.86,599.87,0.33340557]
[1743402674137,3.3149832,600.86,599.88,0.28754143]
[1743402674344,3.3149832,600.86,599.89,0.33339445]
[1743402674542,3.3149832,600.86,599.9,0.28754143]
[1743402675340,3.3149832,600.86,599.91,0.33338334]
[1743402676037,2.19978904,600.85,599.91,0.33338334]
[1743402676236,3.31495107,600.86,599.91,0.33338334]
[1743402676437,2.1997141,600.85,599.91,0.33338334]
[1743402676642,3.31487613,600.86,599.91,0.33338334]
[1743402679840,1.3784285,600.85,599.91,0.33338334]
[1743402680044,3.31486448,600.86,599.92,0.2875481]
[1743402680246,3.31486448,600.86,599.93,0.33337222]
[1743402680444,3.31486448,600.86,599.94,0.2875481]
[1743402680847,3.31486448,600.86,599.95,0.33336111]
[1743402681041,3.31486448,600.86,599.96,0.2875481]
[1743402681245,3.31486448,600.86,599.97,0.33335]
[1743402681446,3.31486448,600.86,599.98,0.2875481]
[1743402681647,3.31486448,600.86,599.99,0.33333888]
[1743402681847,3.31486448,600.86,600.0,0.2875481]
[1743402682046,3.31486448,600.86,600.01,0.33332777]
[1743402682442,1.3784285,600.85,600.01,0.33332777]
[1743402682647,3.31486448,600.86,600.01,0.33332777]
[1743402688043,2.19970245,600.85,600.01,0.33332777]
[1743402688549,0.82127395,600.85,600.01,0.33332777]
[1743402688749,3.31486448,600.9,600.01,0.33332777]
[1743402688949,1.3784285,600.89,600.01,0.33332777]
[1743402689150,3.31486448,600.9,600.01,0.33332777]
[1743402690246,0.82127395,600.89,600.01,0.33332777]
[1743402690450,5.52270044,600.9,600.01,0.33332777]